Cogmind - Beta 15 @@@ ROGUE MODE // 2025.07.02 @ 22:33:32 Player: BlobtheGreat Result: Destroyed by as-43462 with Assembled Heavy Rifle Performance ------------- Evolutions (0) 0 Regions Visited (4) 800 Robots Destroyed (26) 130 Value Destroyed (641) 641 Prototype IDs (1) 20 Alien Tech Used (0) 0 Bonus (0) 0 TOTAL SCORE: 1591 Bonus ------- None Cogmind --------- Core Integrity 0/250 Matter 273/300 Energy 142/160 System Corruption 1% Temperature Cool (18) Movement Rolling (100) Location -9/Mines Parts ------- > --- POWER (1) -------- Light Nuclear Core > --- PROPULSION (2) --- Compact Wheel Compact Wheel > --- UTILITY (2) ------ Large Storage Unit > --- WEAPON (2) ------- EM Pulse Gun Improved Light Cannon > --- INVENTORY (15) --- Ion Engine Light Treads Light Treads Light Treads Seismic Detector Light Armor Plating Light Armor Plating Splice Drone Bay (6/6) Assault Rifle Light Assault Rifle Improved Light Cannon Improved Light Cannon Improved Light Cannon Grenade Launcher Flail Peak State ------------ > --- POWER ------------ Light Nuclear Core > --- PROPULSION ------- Compact Wheel Compact Wheel > --- UTILITY ---------- Large Storage Unit Splice Drone Bay > --- WEAPON ----------- EM Pulse Gun Improved Light Cannon > --- INVENTORY -------- Ion Engine Light Treads Light Treads Light Treads Seismic Detector Seismic Detector Light Armor Plating Light Armor Plating Assault Rifle Light Assault Rifle Improved Light Cannon Improved Light Cannon Improved Light Cannon Grenade Launcher Flail [Rating: 17] Favorites ----------- Power Light Nuclear Core Engine Light Ion Engine Power Core Light Nuclear Core Propulsion Compact Wheel Treads Light Treads Wheel Compact Wheel Utility Large Storage Unit Device Seismic Detector Storage Large Storage Unit Protection Light Armor Plating Weapon EM Pulse Gun Energy Gun EM Pulse Gun Ballistic Gun Light Assault Rifle Ballistic Cannon Improved Light Cannon Build | -11 -10 -10 -10 -9 ------- Run | Yrd Mat Min Exi Min Slots Evolved . | . . . . . Power . | . . . . . Propulsion . | . . . . . Utility . | . . . . . Weapon . | . . . . . Parts Attached 16 | 7 7 . . 2 Power 2 | 1 1 . . . Engine 1 | 1 . . . . Core 1 | . 1 . . . Reactor . | . . . . . Propulsion 4 | 2 2 . . . Treads 2 | 2 . . . . Leg . | . . . . . Wheel 2 | . 2 . . . Hover . | . . . . . Flight . | . . . . . Utility 6 | 2 2 . . 2 Device 3 | 1 . . . 2 Storage 2 | 1 1 . . . Processor . | . . . . . Hackware . | . . . . . Protection 1 | . 1 . . . Artifact . | . . . . . Weapon 4 | 2 2 . . . Energy Gun 1 | . 1 . . . Energy Cannon . | . . . . . Ballistic Gun 2 | 2 . . . . Ballistic Cannon 1 | . 1 . . . Launcher . | . . . . . Special Weapon . | . . . . . Impact Weapon . | . . . . . Slashing Weapon . | . . . . . Piercing Weapon . | . . . . . Special Melee Weapon . | . . . . . Unidentified Prototypes 1 | . . . . 1 Parts Lost 6 | . 5 . . 1 Power 1 | . 1 . . . Propulsion 2 | . 2 . . . Utility 2 | . 1 . . 1 Weapon 1 | . 1 . . . Highest Loss Streak 2 | . 2 . . 1 To Critical Strikes . | . . . . . Average Backups 11 | 4 9 15 15 15 Power 1 | . 1 1 1 1 Propulsion 2 | 2 2 3 3 3 Utility 2 | . 2 4 4 4 Weapon 4 | . 3 7 7 7 Tool/Special . | . . . . . Unused Backups 23 | . 9 . . 14 Power 2 | . 1 . . 1 Propulsion 5 | . 2 . . 3 Utility 8 | . 5 . . 3 Weapon 8 | . 1 . . 7 Tool/Special . | . . . . . Average Slot Usage (%) 95 | . 91 100 100 100 Engine 1 | . 3 . . . Core 10 | . 8 14 14 14 Treads 10 | . 18 . . . Wheel 17 | . 9 28 28 28 Device 2 | . 3 . . 4 Storage 14 | . 14 14 14 14 Protection 8 | . 5 14 14 9 Energy Gun 9 | . 5 14 14 14 Ballistic Gun 10 | . 19 . . . Ballistic Cannon 8 | . 3 14 14 14 Peak Build Rating 17 | 7 12 11 11 17 Average Rating 9 | 4 8 11 11 11 On Entrance 8 | . 7 11 11 11 Naked Turns . | . . . . . Heaviest Build 34 | 12 34 34 34 34 Greatest Support 40 | 40 40 32 32 32 Greatest Overweight (x) 1 | . 1 1 1 1 Average Overweight (x) . | . . 1 1 . Largest Inventory Capacity 15 | 8 15 15 15 15 Average Capacity 12 | 6 11 15 15 15 Most Carried 15 | 7 15 15 15 15 Average Carried 11 | 4 9 15 15 15 Final Capacity 15 | 8 15 15 15 15 Final Carried 15 | 7 15 15 15 15 Class Distribution -------------------- 100% | Mutant Dominant Class ---------------- Mutant | -10/Materials Mutant | -10/Mines Mutant | -10/Exiles Mutant | -9/Mines Resources | -11 -10 -10 -10 -9 ----------- Run | Yrd Mat Min Exi Min Matter Collected 651 | 302 345 4 . . Remotely . | . . . . . Salvage Created 1065 | 86 860 98 . 21 Parts 58 | 10 46 2 . . Haulers Intercepted 2 | . 2 . . . Recyclers Shooed . | . . . . . Parts Field Recycled . | . . . . . Retrieved Matter . | . . . . . Parts Self-Destructed . | . . . . . Prevented . | . . . . . Kills | -11 -10 -10 -10 -9 ------- Run | Yrd Mat Min Exi Min Combat Hostiles Destroyed 16 | . 14 . . 2 Guns 15 | . 14 . . 1 Cannons 1 | . . . . 1 Classes Destroyed 7 | 2 4 . . 1 Tunneler 2 | 2 . . . . Hauler 2 | . 2 . . . Recycler 3 | 1 1 1 . . Operator 3 | . 3 . . . Watcher 2 | . 2 . . . Grunt 14 | . 14 . . . Assembled 2 | . . . . 2 Best Kill Streak 3 | 3 3 1 . 2 Combat Bots Only 3 | . 3 . . 2 Max Kills in Single Turn 2 | 1 1 1 . 2 Gunslinging . | . . . . . Exploded . | . . . . . Melee . | . . . . . Uniques/NPCs Destroyed . | . . . . . Combat | -11 -10 -10 -10 -9 -------- Run | Yrd Mat Min Exi Min Hostile Shots Fired 91 | . 84 . . 7 Missed 20 | . 18 . . 2 Hits 71 | . 66 . . 5 Melee 2 | . . . . 2 Projectile 69 | . 66 . . 3 Critical Strikes 1 | . 1 . . . Damage Taken 1007 | . 880 34 . 93 Core 250 | . 213 . . 37 Absorbed by Shields . | . . . . . Core Remaining (%) 100 | 100 . . . . Volleys Fired 101 | 8 89 1 . 3 Largest 2 | 2 2 2 . 2 Hottest 73 | 40 73 73 . 73 Shots Fired 194 | 16 170 2 . 6 Gun 187 | 16 167 1 . 3 Cannon 7 | . 3 1 . 3 Launcher . | . . . . . Special . | . . . . . Kinetic 161 | 16 141 1 . 3 Thermal . | . . . . . Explosive . | . . . . . Electromagnetic 33 | . 29 1 . 3 Robot Hit Streak 11 | 4 11 3 . 1 Robot Miss Streak 7 | 3 7 1 . 3 Penetration Max . | . . . . . Secondary Targets 3 | . 3 . . . Max Gunslinging Chain 1 | . 1 . . . Shots Hit Robots 116 | 10 103 1 . 2 Core Hits 55 | 6 46 1 . 2 Critical Kills . | . . . . . Critical Parts Destroyed 1 | . 1 . . . Critical Strikes 1 | . 1 . . . Destroy 1 | . 1 . . . Melee Attacks . | . . . . . Impact . | . . . . . Slashing . | . . . . . Piercing . | . . . . . Sneak Attacks . | . . . . . Combat Hostiles . | . . . . . Follow-up Attacks . | . . . . . Damage Inflicted 1398 | 98 1202 42 . 56 Guns 1283 | 98 1160 13 . 12 Cannons 44 | . . . . 44 Explosions 71 | . 42 29 . . Melee . | . . . . . Ramming . | . . . . . Kinetic 969 | 98 827 . . 44 Thermal 71 | . 42 29 . . Explosive . | . . . . . Electromagnetic 358 | . 333 13 . 12 Impact . | . . . . . Slashing . | . . . . . Piercing . | . . . . . Highest Corruption 1 | . . . . 1 Average Corruption 1 | . . . . 1 Corruption Purged . | . . . . . Corruption Blocked . | . . . . . Overload Shots . | . . . . . Overflow Damage . | . . . . . Projectiles . | . . . . . Explosions . | . . . . . Melee . | . . . . . Knockbacks . | . . . . . Impact . | . . . . . Kinetic . | . . . . . Secondary . | . . . . . Self-Inflicted Damage 58 | . 24 34 . . Shots 2 | . 1 1 . . Rammed . | . . . . . Targets Rammed . | . . . . . Kicked . | . . . . . Crushed . | . . . . . Highest Temperature 383 | . 383 39 . 18 Average Temperature 89 | . 94 24 . 12 Received Heat Transfer 486 | . 486 . . . Effects 3 | . 3 . . . Shutdowns 1 | . 1 . . . Energy Bleed 1 | . 1 . . . Short Circuit 1 | . 1 . . . Siege Activations . | . . . . . Martial Activations . | . . . . . Shielding Activations . | . . . . . Robots Disrupted . | . . . . . Combat Hostiles . | . . . . . Robots Corrupted . | . . . . . Combat Hostiles . | . . . . . Parts Fried 1 | . 1 . . . Impact Corruptions . | . . . . . Robots Melted . | . . . . . Combat Hostiles . | . . . . . Parts Melted . | . . . . . Heat Transferred 100 | . 50 50 . . Parts Sabotaged . | . . . . . Parts Stolen . | . . . . . Parts Stripped . | . . . . . Power Chain Reactions 2 | . 1 1 . . Alert | -11 -10 -10 -10 -9 ------- Run | Yrd Mat Min Exi Min Maximum Alert Level . | . . . . . Low Security (%) 100 | 100 100 100 . 100 Level 1 . | . . . . . Level 2 . | . . . . . Level 3 . | . . . . . Level 4 . | . . . . . Level 5 . | . . . . . High Security . | . . . . . Max Security . | . . . . . Peak Influence 156 | 10 156 11 . . Initial 7 | . . 7 . . Average 41 | . 57 . . . Influence Increases 552 | 15 526 11 . . Destroy 0b10 Robot/C 280 | . 280 . . . Destroy 0b10 Robot/NC 60 | 15 40 5 . . Destroy Leader 78 | . 78 . . . Successful Hack 19 | . 19 . . . Disable Machine 15 | . 15 . . . Destroy Structure 10 | . 4 6 . . Lose Combat Pursuer 90 | . 90 . . . Influence Decreases 552 | 15 505 32 . . Entered New Map 14 | . . 14 . . Time Decay 488 | 15 455 18 . . Lost Part 50 | . 50 . . . Squads Dispatched 4 | . 4 . . . Investigation 1 | . 1 . . . Extermination . | . . . . . Reinforcement 3 | . 3 . . . Assault . | . . . . . Garrison . | . . . . . Intercept . | . . . . . Searches Triggered . | . . . . . Construction Impeded . | . . . . . Haulers Reinforced . | . . . . . Active Scanning Responses . | . . . . . Cargo Convoy Interrupts . | . . . . . Stealth | -11 -10 -10 -10 -9 --------- Run | Yrd Mat Min Exi Min Distress Signals 4 | . 4 . . . Communications Jammed . | . . . . . Distress Signals . | . . . . . Times Spotted 40 | . 33 . . 7 Peak Tracking Total 7 | . 6 . . 7 Tactical Retreats 6 | . 6 . . . Traps | -11 -10 -10 -10 -9 ------- Run | Yrd Mat Min Exi Min Traps Triggered 3 | . 3 . . . Indirectly . | . . . . . Trap Hack Attempts . | . . . . . Triggered . | . . . . . Disarmed . | . . . . . Reprogrammed . | . . . . . Reused . | . . . . . Traps Extracted . | . . . . . Installed . | . . . . . Triggered . | . . . . . Machines | -11 -10 -10 -10 -9 ---------- Run | Yrd Mat Min Exi Min Machines Disabled 1 | . 1 . . . Max in Single Turn 1 | . 1 . . . Machines Repaired . | . . . . . Machines Dismantled . | . . . . . Machines Sabotaged . | . . . . . Overloaded Fab Kills . | . . . . . Hacking | -11 -10 -10 -10 -9 --------- Run | Yrd Mat Min Exi Min Machines Accessed 7 | . 5 . 1 1 Terminals 5 | . 5 . . . Fabricators . | . . . . . Repair Stations . | . . . . . Recycling Units . | . . . . . Scanalyzers . | . . . . . Garrison Access . | . . . . . Total Hacks 20 | . 18 . 1 1 Successful 10 | . 8 . 1 1 Failed 9 | . 9 . . . Catastrophic . | . . . . . Database Lockouts 1 | . 1 . . . Manual 16 | . 16 . . . Terminals 18 | . 18 . . . Fabricators . | . . . . . Repair Stations . | . . . . . Recycling Units . | . . . . . Scanalyzers . | . . . . . Garrison Access . | . . . . . Terminal Hacks 5 | . 3 . 1 1 Record 1 | . . . 1 . Robot Analysis 1 | . 1 . . . Open Door 1 | . . . . 1 Terminal Index 1 | . 1 . . . Hauler Manifests 1 | . 1 . . . Fabricator Hacks . | . . . . . Repair Station Hacks . | . . . . . Recycling Unit Hacks . | . . . . . Scanalyzer . | . . . . . Garrison Access Hacks . | . . . . . Unauthorized Hacks 5 | . 5 . . . Terminals 5 | . 5 . . . Botnet 1 | . 1 . . . Skim 4 | . 4 . . . Fabricators . | . . . . . Repair Stations . | . . . . . Recycling Units . | . . . . . Scanalyzers . | . . . . . Garrison Access . | . . . . . Data Cores Recovered . | . . . . . Used . | . . . . . Hacking Detections 4 | . 4 . . . Full Trace Events . | . . . . . Feedback Events . | . . . . . Feedback Blocked . | . . . . . Robot Schematics Acquired . | . . . . . Robots Built . | . . . . . Authchips . | . . . . . Time . | . . . . . Total Robot Build Rating . | . . . . . Part Schematics Acquired . | . . . . . Parts Built . | . . . . . Authchips . | . . . . . Time . | . . . . . Total Part Build Rating . | . . . . . Parts Repaired . | . . . . . Time . | . . . . . Parts Recycled . | . . . . . Recycled Matter . | . . . . . Retrieved Matter . | . . . . . Retrieved Components . | . . . . . Parts Scanalyzed . | . . . . . Part Schematics Acquired . | . . . . . Parts Damaged . | . . . . . Bothacking | -11 -10 -10 -10 -9 ------------ Run | Yrd Mat Min Exi Min Used RIF Installer . | . . . . . Robots Hacked . | . . . . . Non-combat . | . . . . . Combat . | . . . . . Robot Hacks Applied . | . . . . . Relay Couplers Released . | . . . . . Fabnet Peak Effective % . | . . . . . Robots Rewired . | . . . . . Allies Hacked . | . . . . . Hacks Repelled . | . . . . . Allies | -11 -10 -10 -10 -9 -------- Run | Yrd Mat Min Exi Min Total Allies 1 | . . . . 1 Largest Group 1 | . . . . 1 Highest-Rated Group 31 | . . . . 31 Highest-Rated Ally 31 | . . . . 31 Total Orders . | . . . . . Ally Attacks . | . . . . . Total Damage . | . . . . . Kills . | . . . . . Allies Corrupted . | . . . . . Allies Melted . | . . . . . Intel | -11 -10 -10 -10 -9 ------- Run | Yrd Mat Min Exi Min Active Infowar (turns) 472 | 39 395 . . 38 Seismic 472 | 39 395 . . 38 Robot Analysis Total 1 | . 1 . . . Derelict Logs Recovered 1 | . . 1 . . Drone Launches . | . . . . . Drone Recoveries . | . . . . . Exploration | -11 -10 -10 -10 -9 ------------- Run | Yrd Mat Min Exi Min Turns Passed 3027 | 129 1628 348 796 126 Spaces Moved 2125 | 58 968 301 693 105 Core 2 | 2 . . . . Treads 563 | 56 507 . . . Legs . | . . . . . Wheels 1560 | . 461 301 693 105 Hover . | . . . . . Flight . | . . . . . Fastest Speed 50 | 50 100 115 115 100 Average Speed 125 | 156 136 115 115 110 Slowest Speed 160 | 160 160 115 115 115 Overloaded Moves . | . . . . . Propulsion Burnouts . | . . . . . Robots Hopped . | . . . . . Potential Cave-ins . | . . . . . Cave-ins Triggered . | . . . . . Exploration Rate (%) 57 | 6 97 67 91 26 Regions Visited 4 Branch Regions 3 Pre-discovered Areas . | . . . . . Known Exits Taken . | . . . . . Unknown Exits Taken 4 | 1 1 1 1 . Scrap Searched 1 | . . . . 1 Spaces Dug . | . . . . . Terrain Destroyed 9 | . 3 6 . . Melee . | . . . . . Projectile 1 | . 1 . . . AOE 8 | . 2 6 . . Terrain Rammed . | . . . . . Walls Destroyed . | . . . . . Machines Disabled . | . . . . . Actions | -11 -10 -10 -10 -9 --------- Run | Yrd Mat Min Exi Min Total 2306 | 79 1123 301 692 111 Wait 23 | . 23 . . . Move 2121 | 57 967 300 692 105 Hop . | . . . . . Pick Up 28 | 7 21 . . . Fast Attach 14 | 7 6 . . 1 Attach 4 | . 4 . . . Detach 2 | . 2 . . . Swap 1 | . . . . 1 Drop 12 | . 11 . . 1 Fire 101 | 8 89 1 . 3 Melee . | . . . . . Ram . | . . . . . Kick . | . . . . . Crush . | . . . . . Escape Stasis . | . . . . . Rewire . | . . . . . Trap . | . . . . . Miscellaneous . | . . . . . Route ------- -11/Scrapyard -10/Materials (discovered 6 exits: [*Mat x3] / [*Min x2] / [*Sub]) -10/Mines (discovered 2 exits: [*Mat] / *Exi) -10/Exiles (discovered 2 exits: *Min x2) -9/Mines History --------- Turn | Location | Event 12 | -11/Scrapyard | Discovered new exit (range 16) 130 | -11/Scrapyard | Entered Materials 302 | -10/Materials | Build established: Mutant 537 | -10/Materials | Discovered new exit (range 15) 585 | -10/Materials | Core integrity fell below 50% 682 | -10/Materials | Discovered new exit (range 3) 794 | -10/Materials | Discovered new exit (range 7) 830 | -10/Materials | Derelicts attacked the area 853 | -10/Materials | Discovered new exit (range 14) 1196 | -10/Materials | Core integrity fell below 20% 1420 | -10/Materials | Central database locked down 1433 | -10/Materials | Discovered new exit (range 14) 1534 | -10/Materials | Discovered new exit (range 14) 1758 | -10/Materials | Entered Mines 1783 | -10/Mines | Met a Derelict bent on vengeance 1947 | -10/Mines | Discovered new exit (range 6) 2072 | -10/Mines | Learned Materials machine intel 2101 | -10/Mines | Deemed a non-threat by the Exiles lab entrance 2102 | -10/Mines | Discovered new exit (range 5) 2106 | -10/Mines | Entered Exiles 2106 | -10/Exiles | Found Exiles lab abandoned 2124 | -10/Exiles | Discovered new exit (range 15) 2619 | -10/Exiles | Discovered new exit (range 10) 2902 | -10/Exiles | Entered Mines 2905 | -9/Mines | Received a Mining Laser from a helpful Derelict 2979 | -9/Mines | Found the Drone Emporium 2985 | -9/Mines | Found Prototype Device 2985 | -9/Mines | Identified Splice Drone Bay 3008 | -9/Mines | Assembled infested the area 3028 | -9/Mines | Destroyed by as-43462 with Assembled Heavy Rifle Last Messages --------------- Sealed Doors opened. 02979_ FL-HCS(g): "Well that was anticlimactic. Heard you outside and thought you were from the Merchants Guild. I haven't even officially opened my Drone Emporium yet but am totally ready to tell them where they can shove that C&D." 02981_ FL-HCS(g): "I'm a fan of the free market. Free drones for all! No strings attached!" 02984_ Dropped Lgt. Armor Plating. 02985_ Acquired Prototype Device. 02985_ Identified Splice Drone Bay. 03000_ T-07 Excavator is excavating. 03008_ ALERT: Infestation in the mines, dispatching Demolisher response squad. 03024_ Seismic Detector destroyed. 03024_ System corrupted by crushing effect (+1). 03025_ as-67188 shuts down. 03025_ as-67188 destroyed. 03025_ as-94821 destroyed. Map ----- +----------------------------------------------------+ | ??# #?????????????# #????????????????? | | ?## #?????????????# #????????????????? | | ?# #?????????????# #????????????????? | | ?# ##?????????????## #????????????????? | | ?# ##???????????????## ##????????????????? | | ?# #???????????##########?????????????????? | | ?### #??????????##""""##????????????????????? | | ???# #??????????#" ! "#??????????????? #???? | | ???# #??#####???#" "#????????????? #????? | | ???# #?## ##??## ####?????????? #????? | | ???# ### ##?### ## ##??????? #?????? | | ???# ###%X ####### #??????? | | ???###### ##!![ #??????? | | ????????## #?????? | | ?????????## ######## ##### #????? | | ??????????# ####??????# #??????????????? | | ??????????## ##?????????# #??????????????? | | ???????????######????####### #??????????????? | | ?????????????????????# #??????????????? | | ?????????????????????# ##### #??????????????? | | ?????????????????????# #???# #??????????????? | | ?????????????????????# #???# ??????????????? | | ?????????????????????# #???####?????????????? | | ?????????????????????# #????????????????????? | | ????????????????###### #????????????????????? | | ????????????????# a%@ #????????????????????? | | ??????????# aa #####????????????????????? | | ????????# a ##????????????????????????? | | ???????# ###??????????????????????????? | | ???????##### !??????????????????????????????? | | ???????????#=???????????????????????????????? | | ???????????#????????????????????????????????? | | ????????????????????????????????????????????? | | ????????????????????????????????????????????? | | ????????????????????????????????????????????? | | ????????????????????????????????????????????? | | ????????????????????????????????????????????? | | ????????????????????????????????????????????? | | ????????????????????????????????????????????? | | ????????????????????????????????????????????? | | ????????????????????????????????????????????? | | ????????????????????????????????????????????? | | ????????????????????????????????????????????? | | ????????????????????????????????????????????? | | ????????????????????????????????????????????? | | ????????????????????????????????????????????? | | ????????????????????????????????????????????? | | ????????????????????????????????????????????? | | ????????????????????????????????????????????? | | ????????????????????????????????????????????? | +----------------------------------------------------+ Best States ------------- Heat Dissipation 25 Energy Generation 14 Energy Capacity 160 Matter Stores 300 Matter Capacity 300 Sight Range 16 Terrain Scan Density 10 Armor Coverage 150 Evasion (%) 40 Recoil Reduction 2 Item Schematics ----------------- None Robot Schematics ------------------ None Fabricated ------------ Nothing Repaired ---------- Nothing Alien Tech Used ----------------- None Achievements -------------- None Challenges ------------ None Game ------ Seed FireTiamatThruster Manual? 0 Play Time 00:14:38 Cumulative 58.2 hours Start 2025.07.02 @ 22:17:14 End 2025.07.02 @ 22:33:32 Sessions 1 Manual Loads 0 Difficulty Rogue Special Mode None Game No. 54 Rogue 54 Adventurer 0 Explorer 0 Win Type - Total 1 Types 1/0/0/0/0/0/0/0/0/0 Lore% 38 Gallery% 35 Achievement% 36 Wizard Run 0 Options --------- Layout 1 ASCII 0 Keyboard 1 Movement Arrows Keybinds 0 Fullscreen 1 Font 24/Smallcaps Map View 50x40 Zoom Use 0% Tactical HUD 1 Map Filters NONE Filters NONE Steam 1 RUN: c85d180e-6044-45cd-935b-7c586da1bd84